Workbook

Sheet 1
A1: Школа | B1: ГБОУ "Татарско -Елтанская школа -интернат для детей с ОВЗ" | E1: Отд./корп | I1: День | J1: 2024-01-13
J2: 29,01,22
A3: Прием пищи | B3: Раздел | C3: № рец. | D3: Блюдо | E3: Выход, г | F3: Цена | G3: Калорийность | H3: Белки | I3: Жиры | J3: Углеводы | M3: ,
A4: Завтрак | B4: гор.блюдо | D4: каша молочная пшенная | E4: 200 | F4: 10.72 | G4: 285 | H4: 7.51 | I4: 11.7 | J4: 37.05
B5: гор.напиток | D5: какао с молоком | E5: 200 | F5: 14.85 | G5: 125 | H5: 3.78 | I5: 0.67 | J5: 26
B6: хлеб | D6: бутерброд с маслом | E6: 30*20 | F6: 15.17 | G6: 220 | H6: 2.02 | I6: 16.6 | J6: 15.21
B7: хлеб | D7: хлеб пшеничный | E7: 70 | F7: 4.62 | G7: 164 | H7: 4.72 | I7: 0.57 | J7: 35.86
F8: =SUM(F4:F7) -> 45.36 | G8: =SUM(G4:G7) -> 794.6 | H8: =SUM(H4:H7) -> 18.03 | I8: =SUM(I4:I7) -> 29.54 | J8: =SUM(J4:J7) -> 114.12
B9: кисломолоч | D9: ряженка | E9: 200 | F9: 19.31 | G9: 105 | H9: 5.8 | I9: 5 | J9: 8
B10: фрукты
B11: кондит.изд | D11: печенье | E11: 20 | F11: 1.82 | G11: 190.2 | H11: 3.38 | I11: 3.77 | J11: 36
F12: =SUM(F9:F11) -> 21.13 | G12: =SUM(G9:G11) -> 295 | H12: =SUM(H9:H11) -> 9.18 | I12: =SUM(I9:I11) -> 8.77 | J12: =SUM(J9:J11) -> 43.97
A13: Обед
B14: 1 блюдо | D14: суп картофельный рисовый м/к бульоне | E14: 200*15 | F14: 15.53 | G14: 82.8 | H14: 1.6 | I14: 4 | J14: 10.1
B15: мясо | D15: котлета из говядины | E15: 100 | F15: 36.26 | G15: 228 | H15: 15.5 | I15: 11.5 | J15: 15.7
B16: гарнир | D16: гороховая каша | E16: 160 | F16: 7.07 | G16: 200 | H16: 11.5 | I16: 3.14 | J16: 28.6
B17: гор.напиток | D17: компот из сухофруктов | E17: 200 | F17: 2.47 | G17: 158 | H17: 0.95 | I17: 0 | J17: 37.1
B18: хлеб | D18: хлеб пшеничный | E18: 50 | F18: 2.65 | G18: 117 | H18: 3 | I18: 0 | J18: 25
B20: хлеб черн. | D20: хлеб ржаной | E20: 100 | F20: 5.50 | G20: 228 | H20: 5.56 | I20: 1.13 | J20: 49
F21: =SUM(F13:F20) -> 69.48 | G21: =SUM(G13:G20) -> 1014 | H21: =SUM(H13:H20) -> 38.49 | I21: =SUM(I13:I20) -> 20.18 | J21: =SUM(J13:J20) -> 165.53
A22: Полдник | B22: выпечка | D22: булочка домашняя | E22: 70 | F22: 5.35 | G22: 251.1 | H22: 6 | I22: 7.29 | J22: 36.3
B23: гор.напиток | D23: молоко | E23: 200 | F23: 12.31 | G23: 104.8 | H23: 5.6 | I23: 4.9 | J23: 9.3
B24: фрукты
F25: =SUM(F22:F24) -> 17.66 | G25: =SUM(G22:G24) -> 356 | H25: =SUM(H22:H24) -> 11.6 | I25: =SUM(I22:I24) -> 12.19 | J25: =SUM(J22:J24) -> 45.6
A26: Ужин | B26: закуска
B27: 2 блюда | D27: птица тушеное в соусе | E27: 100 | F27: 21.62 | G27: 269 | H27: 8.4 | I27: 12 | J27: 13.30
B28: хлеб | D28: хлеб ржаной | E28: 50 | F28: 2.75 | G28: 114 | H28: 2.78 | I28: 0.57 | J28: 24.7
B29: гор.напиток | D29: чай с сахаром | E29: 200 | F29: 1.55 | G29: 40 | H29: 0.53 | I29: 0 | J29: 9.47
B30: хлеб | D30: хлеб пшеничный | E30: 50 | F30: 2.65 | G30: 117 | H30: 3.38 | I30: 0.41 | J30: 25.03
B31: гарнир | D31: каша гречневая рассыпчтая | E31: 150 | F31: 8.87 | G31: 230 | H31: 7.46 | I31: 5.61 | J31: 35.8
F32: =SUM(F26:F31) -> 37.44 | G32: =SUM(G26:G31) -> 770 | H32: =SUM(H26:H31) -> 22.55 | I32: =SUM(I26:I31) -> 18.59 | J32: =SUM(J26:J31) -> 108
F33: =SUM(F32,F25,F21,F12,F8) -> 191.07 | G33: =SUM(G32,G25,G21,G12,G8) -> 3230 | H33: =SUM(H8+H12+H21+H25+H32) -> 99.85 | I33: =SUM(I8+I12+I21+I25+I32) -> 89.27 | J33: =SUM(J8+J12+J21+J25+J32) -> 477.52
